{"text_format":"1","workbook":"xlsx","n_sheets":6,"sheets":["R2E Generic Components","List","old","R2E Detailled Component List","CC-Coments","Sheet1"],"not_rendered":{"charts":0,"images":0,"macros":1,"external_links":0,"defined_names":4,"comments":1,"pivot_tables":0},"unopened":[],"bounds":{"document_bytes":16777216,"sheet_cells":100000,"rows_first":2000,"rows_last":500,"rows_between":2000,"halvings":0,"cell_chars":16384,"cell_head_chars":4096},"cells_cut":0,"cells_raw":0,"read":"whole","date_system":"1900"}

{"sheet":"R2E Generic Components","index":0,"n_rows":39,"n_cols":9,"rows_kept":39,"cut":false,"hidden":false,"merged":[]}
[]
[null,"last update","2011-05-18"]
[null,"Type","ss-Type","Component\nRating.1","Component\nRating.2","TE-EPC\nUser","Power /\nCase","Typical Use","Ratings, Cond. Use & Additional Info"]
[null,"Transistor","IGBT","[5A..100A]","1200V","LPC","High.Pwr-Trad.","H-Bridge High Frequency Switching on an nominal 540Vdc bus inverter (20..50kHz)","VCE.max=600V"]
[null,"Transistor","IGBT","[5A..100A]","1200V","LPC","High.Pwr-Trad.","Input Power Filter End of Precharge Switch","VCE.max=600V"]
[null,"Transistor","Mosfet-N","[100A..400A]","[100V..200V]","LPC","High.Pwr-Trad.","4 quadrant linear Stage, Mosfet used in linear mode","|VDS.max|=40V\nVGS.range=[-15V..+15V]"]
[null,"Transistor","Mosfet-N","<0.2A","100V","LPC","Low.Pwr-SMD","Low Power analogue or \"digital\" circuitery","|VDS.max|=30V\nVGS.range=[-15V..+15V]"]
[null,"Transistor","Mosfet-N","<20A","200V","LPC","Med.Pwr-SMD","High frequency switching transistor (20..200kHz)","|VDS.max|=100V\nVGS.range=[-15V..+15V]"]
[null,"Transistor","Mosfet-P","<0.2A","100V","LPC","Low.Pwr-SMD","Low Power analogue or \"digital\" circuitery","|VDS.max|=30V\nVGS.range=[-15V..+15V]"]
[null,"Transistor","Mosfet-P","<20A","200V","LPC","Med.Pwr-SMD","High frequency switching transistor (20..200kHz)","|VDS.max|=100V\nVGS.range=[-15V..+15V]"]
[null,"Transistor","Bipolaire NPN","<0.2A","100V","LPC","Low.Pwr-SMD","Low Power analogue or \"digital\" circuitery","|Ic| < 20mA - amplifier transistor"]
[null,"Transistor","Bipolaire NPN","[1A..3A]","100V","LPC","Med.Pwr-SMD","Pre-regulator","|Ic| < 100mA - amplifier transistor"]
[null,"Transistor","Bipolaire PNP","[1A..3A]","100V","LPC","Med.Pwr-SMD","Pre-regulator","|Ic| < 100mA - amplifier transistor"]
[null,"Transistor","Thyristor","[100A..1kA]","400V..1600V","LPC","Power-Trad.","High Power protection (crowbar)","VAK.max=50V"]
[null,"IC","Comparator","Low Power",null,"LPC","Low.Pwr-SMD","Treshold detection.","Vcc=±15V."]
[null,"IC","Operational Amplifiers","Low Power",null,"LPC","Low.Pwr-SMD","Measurement, filtering, differential, control loops","Vcc=±15V."]
[null,"IC","Operational Amplifiers","Low Power",null,"LPC","Low.Pwr-SMD","High Precision Measurement single or  differential","Vcc=±15V."]
[null,"IC","Optocoupler","Low Speed","> 2500Veff Insul.","LPC","Low.Pwr-SMD","Low speed analogue signal transmission (control loops, detection)"]
[null,"IC","Optocoupler","High Speed","> 2500Veff Insul.","LPC","Low.Pwr-SMD","High speed digital signal transmission"]
[null,"IC","Voltage Reference","low power","[Vref: 1.2V..2.5V]","LPC","Low.Pwr-SMD","Programmable zener, Control loops",0.01]
[null,"IC","ADC","16bits",null,"LPC","Low.Pwr-SMD","Medium Precision"]
[null,"IC","DAC","16bits",null,"LPC","Low.Pwr-SMD","Medium Precision"]
[null,"IC","PWM","low Power","±15V","LPC","Low.Pwr-SMD","Phase shifted PWM for inverter"]
[null,"IC","Analog Switch","low Power","±15V","LPC","Low.Pwr-SMD","Used for resetting some integrator in control loops, or variable detection thresholds"]
[null,"IC","Current sensor","[0..300A]",null,"LPC","Med.Pwr-Trad.","Output Current measurement for control loops or load protection"]
[null,"IC","Watch Dog","Low Power","Digital","LPC","Low.Pwr-SMD","R2E Power Converter normally won't use any CPLD"]
[null,"IC","CPLD","Low Power","Digital","LPC","Low.Pwr-SMD","R2E Power Converter normally won't use any CPLD"]
[null,"IC","ADC","24bits","Sigma-Delta principle","CC","Low.Pwr-SMD","High precision, high speed (multi channel) "]
[null,"IC","FPGA","Low Power",null,"CC","Low.Pwr-SMD","Xilinx?, Atmel? or equivalent"]
[null,"IC","Interface","Low Power","RS485 etc.","CC","Low.Pwr-SMD","Serial data link interfaces"]
[null,"IC","1-Wire devices","Low Power",null,"CC","Low.Pwr-Trad & SMD","Secure authentication and mixed signal functions"]
[null,"IC","Memory","Low Power","ex: 128Kx8bit","CC","Low.Pwr-SMD","CMOS Static RAM"]
[null,"Fan",null,"DC Type","[15..24Vdc]","LPC","Med.Pwr-Trad.","Electronic switching regulator inside"]
[null,"Diode","Standard","<0.2A","[70..100V]","LPC","Low.Pwr-SMD","Low Power analogue or \"digital\" circuitery","used in ±15V environment. Leakage current no highly critical."]
[null,"Diode","Fast/Ultra Fast recovery","[100A..300A]","600V","LPC","Power-Trad.","High Power Rectifier, switching secondary side (20..50kHz)"]
[null,"Diode","Fast/Ultra Fast recovery","[10A..50A]","1400.1600V","LPC","Power-Trad.","High Power Rectifier 300Hz Rectifier Bridge "]
[null,"Diode","Schottky","[100A..300A]","[70..150V]","LPC","Power-Trad.","High Power Rectifier, switching secondary side (20..50kHz)","Usely used at 75% of their VRRM nominal voltage."]
[null,"Diode","Zener","low power","[2.7..48V]","LPC","Low.Pwr-SMD","Low Power analogue","BZV55 series."]
[null,"Diode","Transil","600W","[2.7..48V]","LPC","Low.Pwr-SMD","Low Power Proteciton"]

{"sheet":"List","index":1,"n_rows":59,"n_cols":16,"rows_kept":59,"cut":false,"hidden":false,"merged":[[1,0,1,12]]}
[null,"Destination","Procurement","Team","Facility","R2E-status","EPC-Sections","Question",null,null,null,null,"Choices",null,"Component"]
["Don't Change the column order, no insert or delete of any kindAC-DC",null,null,null,null,null,null,null,null,null,null,null,null,null,"Type","SS-Type"]
[null,"R2E-LHC120A-10V","To Be Ordered","TE-EPC-CC","PSI","To Be Tested","CC","Yes","done","FGC2","Switch-Tester",null,"Save to te-epc-lpc (ythurel only)",null,"AC-DC","4 MHz Oscillator"]
[null,"R2E-LHC600A-10V","Not Ordered","TE-EPC-LPC","EAIRRAD","Under Test","CC-LPC","No","not done","LHC60A-08V","COP-Tester",null,"Select All  cpts > Extended view",null,"Diode","ADC"]
[null,"R2E-LHC4-6-8kA-08V","Ordered","EN-STI",null,"Fully Tested","LPC","Perhaps","not needed","LHC120A-10V","??",null,"Select All  cpts > Compact view",null,"IC","Bipolar NPN"]
[null,"R2E-LHC/All","Unknown","BE-CO",null,null,"HPM","???",null,"LHC600A-10V",null,null,"Select All  cpts > Compact view (+Final phase)",null,"LED","Bipolar PNP"]
[null,null,null,"TRAD",null,null,"N.A.",null,null,"??",null,null,"Select CC  cpts > Compact view (+Final phase)",null,"Oscillator","Analog Switch"]
[null,null,null,"T.B.D.",null,null,null,null,null,null,null,null,"Select LPC cpts > Compact view (+Final phase)",null,"Transistor","Bridge Rectifier"]
[null,null,null,"Other",null,null,null,null,null,null,null,null,"Select Tests Done > Compact view",null,null,"Bus Tranceiver"]
[null,null,null,null,null,null,null,null,null,null,null,null,"Select EN-STI avail. Works > Compact view",null,null,"Comparator"]
[null,null,null,null,null,null,null,null,null,null,null,null,null,null,null,"DAC"]
[null,null,null,null,null,null,null,null,null,null,null,null,null,null,null,"DALLAS driver"]
[null,null,null,null,null,null,null,null,null,null,null,null,null,null,null,"DALLAS ESD Diode"]
[null,null,null,null,null,null,null,null,null,null,null,null,null,null,null,"DALLAS S/N"]
[null,null,null,null,null,null,null,null,null,null,null,null,null,null,null,"DALLAS Thermometer"]
[null,null,null,null,null,null,null,null,null,null,null,null,null,null,null,"Demultiplexer"]
[null,null,null,null,null,null,null,null,null,null,null,null,null,null,null,"Diode"]
[null,null,null,null,null,null,null,null,null,null,null,null,null,null,null,"Fast/Ultra Fast recovery"]
[null,null,null,null,null,null,null,null,null,null,null,null,null,null,null,"Fast/Ultra Fast recovery"]
[null,null,null,null,null,null,null,null,null,null,null,null,null,null,null,"FIELDDRIVE line driver"]
[null,null,null,null,null,null,null,null,null,null,null,null,null,null,null,"FIELDTR Transformer"]
[null,null,null,null,null,null,null,null,null,null,null,null,null,null,null,"FPGA"]
[null,null,null,null,null,null,null,null,null,null,null,null,null,null,null,"IGBT"]
[null,null,null,null,null,null,null,null,null,null,null,null,null,null,null,"LEM"]
[null,null,null,null,null,null,null,null,null,null,null,null,null,null,null,"Linear Voltage Regulator"]
[null,null,null,null,null,null,null,null,null,null,null,null,null,null,null,"Memory"]
[null,null,null,null,null,null,null,null,null,null,null,null,null,null,null,"Micrel Voltage Regulator"]
[null,null,null,null,null,null,null,null,null,null,null,null,null,null,null,"Mosfet Driver"]
[null,null,null,null,null,null,null,null,null,null,null,null,null,null,null,"Mosfet-?"]
[null,null,null,null,null,null,null,null,null,null,null,null,null,null,null,"Mosfet-N"]
[null,null,null,null,null,null,null,null,null,null,null,null,null,null,null,"Mosfet-P"]
[null,null,null,null,null,null,null,null,null,null,null,null,null,null,null,"Multiplexer"]
[null,null,null,null,null,null,null,null,null,null,null,null,null,null,null,"Operational Amplifier"]
[null,null,null,null,null,null,null,null,null,null,null,null,null,null,null,"Optocoupler"]
[null,null,null,null,null,null,null,null,null,null,null,null,null,null,null,"Optocoupler - Phototransistor"]
[null,null,null,null,null,null,null,null,null,null,null,null,null,null,null,"Oscillator"]
[null,null,null,null,null,null,null,null,null,null,null,null,null,null,null,"PNP switching transistor"]
[null,null,null,null,null,null,null,null,null,null,null,null,null,null,null,"Precision Temperature Sensor"]
[null,null,null,null,null,null,null,null,null,null,null,null,null,null,null,"Puls AC-DC"]
[null,null,null,null,null,null,null,null,null,null,null,null,null,null,null,"PWM"]
[null,null,null,null,null,null,null,null,null,null,null,null,null,null,null,"Quartz"]
[null,null,null,null,null,null,null,null,null,null,null,null,null,null,null,"Rectifier bridge"]
[null,null,null,null,null,null,null,null,null,null,null,null,null,null,null,"Red/green bi-color LED"]
[null,null,null,null,null,null,null,null,null,null,null,null,null,null,null,"Regulator"]
[null,null,null,null,null,null,null,null,null,null,null,null,null,null,null,"RS485/422 Driver"]
[null,null,null,null,null,null,null,null,null,null,null,null,null,null,null,"Schmitt Trigger"]
[null,null,null,null,null,null,null,null,null,null,null,null,null,null,null,"Schmitt Trigger Buffer"]
[null,null,null,null,null,null,null,null,null,null,null,null,null,null,null,"Schottky"]
[null,null,null,null,null,null,null,null,null,null,null,null,null,null,null,"Small Signal Diode"]
[null,null,null,null,null,null,null,null,null,null,null,null,null,null,null,"Specific IC"]
[null,null,null,null,null,null,null,null,null,null,null,null,null,null,null,"Standard"]
[null,null,null,null,null,null,null,null,null,null,null,null,null,null,null,"Thyristor"]
[null,null,null,null,null,null,null,null,null,null,null,null,null,null,null,"Timer"]
[null,null,null,null,null,null,null,null,null,null,null,null,null,null,null,"Transil"]
[null,null,null,null,null,null,null,null,null,null,null,null,null,null,null,"Voltage Reference"]
[null,null,null,null,null,null,null,null,null,null,null,null,null,null,null,"Voltage regulator"]
[null,null,null,null,null,null,null,null,null,null,null,null,null,null,null,"Voltage Suppresor"]
[null,null,null,null,null,null,null,null,null,null,null,null,null,null,null,"Watchdog"]
[null,null,null,null,null,null,null,null,null,null,null,null,null,null,null,"Zener Diode"]

{"sheet":"old","index":2,"n_rows":23,"n_cols":19,"rows_kept":23,"cut":false,"hidden":false,"merged":[[1,8,1,14],[1,0,1,7],[1,16,1,18]]}
[]
["Component",null,null,null,null,null,null,null,"Test Planification",null,null,null,null,null,null,"Test Facility","Test Results"]
["Type","ss-Type","Reference","Var1","Var2","EPC\nUser","Power / Case","Datasheet\nlink","Test Leader","E.U.T Qty\nAvailable","E.U.T Qty\nTested","Conditions of Use\n(From EPC)","Test Schematic\n(EPC or STI)","Test Schematic\n(EPC or STI)","Ready For Testing","Test Facility","Processed","Report Link","Status"]
["Transistor","IGBT","IRG4PH50S ",null,null,"LPC","High.Pwr-Trad.",null,"EPC",20,8,"Done","EPC: Done","EPC: Done","Yes","CNRAD","Pending","link"]
["Transistor","IGBT","IRG4PH40UD ",null,null,"LPC","High.Pwr-Trad.",null,"EPC",20,8,"Done","EPC: Done","EPC: Done","Yes","CNRAD","Pending","link"]
["Transistor","Mosfet-N","BST82",null,null,"LPC","Low.Pwr-SMD",null,"STI"]
["Transistor","Mosfet-N","STD10NF10T4",null,null,"LPC","Med.Pwr-SMD",null,"STI","?"]
["Transistor","Mosfet-N","IRFR9220",null,null,"LPC","Med.Pwr-SMD",null,"STI","?"]
["Transistor","Mosfet-N","IRFB4310PBF",null,null,"LPC","Med.Pwr-SMD",null,"STI","?"]
["Transistor","Bipolaire NPN","BCP53",null,null,"LPC","Low.Pwr-SMD",null,"STI",50,8,"Done","EPC: Done","EPC: Done","Yes","PSI","Pending"]
["Transistor","Bipolaire PNP","BCP56",null,null,"LPC","Med.Pwr-SMD",null,"STI",50,8,"Done","EPC: Done","EPC: Done","Yes","PSI","Pending"]
["Transistor","Bipolaire PNP","BSR18",null,null,"LPC","Low.Pwr-SMD",null,"STI",50,8,"Done","EPC: Done","EPC: Done","Yes","PSI","Pending"]
["Transistor","Bipolaire NPN","BSR17",null,null,"LPC","Med.Pwr-SMD",null,"STI",50,8,"Done","EPC: Done","EPC: Done","Yes","PSI","Pending"]
["IC","Comparator","LM339D",null,null,"LPC","Low.Pwr-SMD",null,"STI","?","?"]
["IC","Operational Amplifiers","LM124 ",null,null,"LPC","Low.Pwr-SMD",null,"STI","?","?"]
["IC","Operational Amplifiers","TL072",null,null,"LPC","Low.Pwr-SMD",null,"STI","?","?","Done","EPC: Done","STI: Done","Yes","PSI","Pending"]
["IC","Operational Amplifiers","OPA2227UA",null,null,"LPC","Low.Pwr-SMD",null,"STI","?","?","Done","EPC: Done","STI: Done","Yes","PSI","Pending"]
["IC","Optocoupler","TLP124",null,null,"LPC","Low.Pwr-SMD",null,"STI",50,null,"?"]
["IC","Optocoupler","4N35",null,null,"LPC","Low.Pwr-SMD",null,"STI",50,null,"?"]
["IC","Optocoupler","HCNR200-300E",null,null,"LPC","Low.Pwr-SMD",null,"STI",50,null,"?"]
["IC","Voltage Reference","TL432BIDBZTG4 ",null,null,"LPC","Low.Pwr-SMD",null,"STI",100,"?","Done","EPC: Done","STI: Done","Yes","PSI","Pending"]
["IC","Voltage Reference","TL431IDBZTG4 ",null,null,"LPC","Low.Pwr-SMD","link","STI",100,"?","Done","EPC: Done","STI: Done","Yes","PSI","Pending"]
["IC","Voltage Reference","LM4041DIM3ADJ ",null,null,"LPC","Low.Pwr-SMD","link","STI",100,"?","Done","EPC: Done","STI: Done","Yes","PSI","Pending"]

{"sheet":"R2E Detailled Component List","index":3,"n_rows":279,"n_cols":33,"rows_kept":279,"cut":false,"hidden":false,"merged":[[1,21,1,27],[1,29,1,32]]}
[null,null,null,null,null,null,null,null,null,null,null,null,null,null,null,null,null,null,null,null,null,null,null,null,1]
[null,"last update","2013-12-09",null,null,null,null,null,null,null,null,null,null,null,null,null,null,null,null,null,null,"R2E Initial & pre-qualification phase",null,null,null,null,null,null,null,"R2E Final phase"]
[null,"Type","ss-Type","Manuf. Part Number","Date\nCode","Other Marking Info","Var1","Var2","EPC\nUser","Case","Manufacturer","Test\nPriority\n1:low","Cpt R2E\nClass.","R2E-Project\nEPC-user","Purchase\nStatus","Avail.?\n","Qty per FGClite","Qty per RadDIM","Total Qty needed","Qty\nOrd'd\n","Qty Still\nAvail.\n","Tester Design\nTeam","Test\nCampaign\nTeam","LHC\nAlready\nInstalled","Mix. \nField\nCERN","MonoEj Protons\nPSI","Heavy\nIons\nUCL","R2E Initial\nStatus","Number\nOf Batches\nTo test","Batch\nTester\nName","Tester\nDesign\nTeam","Mix Field\nEAIRRAD\nPS","R2E Batch\nStatus"]
[null,"Diode","Schottky Power Diode","10BQ040","0241L",null,"1A","40V","LPC","DO-214AA","INTERNATIONAL RECTIFIER",3,1,"LPC","Not Ordered",null,null,null,null,null,null,"T.B.D.",null,null,{"$f":"IF(M4=\"\",\"\",IF($M4=0,\"not done\",IF($M4=1,\"not done\",IF($M4=2,\"not done\",))))","v":"not done"},{"$f":"IF(M4=\"\",\"\",IF($M4=0,\"not needed\",IF($M4=1,\"not done\",IF($M4=2,\"not done\",))))","v":"not done"},{"$f":"IF(M4=\"\",\"\",IF($M4=0,\"not needed\",IF($M4=1,\"not needed\",IF($M4=2,\"not done\",))))","v":"not needed"},null,null,"Switch-Tester","TE-EPC-LPC"]
[null,"Diode","Schottky Power Diode","10BQ100PBF","P117L: Week 17 2011 with Site ID: L",null,"1A","100V","LPC","DO-214AA","VISHAY",5,1,"LPC","Ordered","Yes",null,null,null,50,50,"TE-EPC-LPC",null,"FGC2","not done","not done","not needed","To Be Tested",null,"Switch-Tester","TE-EPC-LPC"]
[null,"Diode","Schottky Power Diode","12CWQ04FN ","424G: Week 24 (2004) with site ID: G","Assembly lot code: 8F3S","12A","40V","LPC","TO-252AA-(DPAK)","INTERNATIONAL RECTIFIER",5,1,"LPC","Ordered","Yes",null,null,null,50,50,"TE-EPC-LPC",null,"FGC2","not done","not done","not needed","To Be Tested",null,"Switch-Tester","TE-EPC-LPC"]
[null,"Diode","Schottky Power Diode","19TQ015SPBF","102 (New)","Assembly lot code: AC or AD (New)","19A","15V","LPC","SMD-220-(D2PACK)","VISHAY",3,1,"LPC","Ordered","Yes",null,null,null,50,50,"T.B.D.",null,null,"not done","not done","not needed","To Be Tested",null,"Switch-Tester","TE-EPC-LPC"]
[null,"Diode","Rectifier bridge","1KAB80E","10-17",null,"1.2A","800V","LPC","D-38","VISHAY",2,1,"LPC","Ordered","Yes",null,null,null,50,50,"TE-EPC",null,null,"not done","not done","not needed","To Be Tested",null,"Switch-Tester","TE-EPC-LPC"]
[null,"Diode","High-Speed Diode","1N4148",null,null,"200mA","75V","HPM","SOD27 (DO-35)","PHILIPS",1,1,"HPM","Not Ordered",null,null,null,null,null,null,"T.B.D.",null,null,"not done","not done","not needed"]
[null,"Transistor","IGBT","2MBI-150U4A-120-50","16010","1EAA508720","100A","1200V","LPC","High.Pwr-Trad.","FUJI",5,1,"LPC","Ordered","Yes",null,null,null,30,30,"TE-EPC",null,"FGC2","not done","not done","not needed","To Be Tested",null,"Switch-Tester","TE-EPC-LPC"]
[null,"Transistor","Mosfet-N","2N7000",null,null,"300mA","60V","LPC","SOT54","PHILIPS",2,1,"LPC","Not Ordered",null,null,null,null,null,null,"T.B.D.",null,null,"not done","not done","not needed",null,null,"Switch-Tester","TE-EPC-LPC"]
[null,"IC","Opto/Photo coupler","4N35XSM","114GG",null,"100mA","30V","LPC","DIP-6","ISOCOM",5,0,"LPC","Ordered","Yes",null,null,{"$f":"Q12*1500+R12*2000","v":0},100,53,"EN-STI","EN-STI","FGC2","not done","not needed","not needed","Fully Tested",null,"Switch-Tester","TE-EPC-LPC"]
[null,"IC","Demultiplexer","74HCT238",null,null,"NA","5V","LPC","Sox","PHILIPS",2,1,"LPC","Not Ordered",null,null,null,null,null,null,"T.B.D.",null,null,"not done","not done","not needed"]
[null,"IC","Schmitt Trigger Buffer","SN74LVC14APW (74ACT14PW)",null,null,"NA","5V0","CC","TSSOP14","PHILIPS/TI",5,1,"CC","Ordered","Yes",3,4,{"$f":"Q14*1500+R14*2000","v":12500},"-","x/450","EN-STI","EN-STI","FGC2","not done","done","not needed","To Be Tested",null,"Switch-Tester","TE-EPC-LPC"]
[null,"Diode","Rectifier bridge","90MT160KPbF","1139","1000023443 or 1000023444","90A","1600V","LPC","High.Pwr-Trad.","VISHAY",5,1,"LPC","Ordered","Yes",null,null,null,10,10,"TE-EPC",null,null,"not done","not done","not needed","To Be Tested",null,null,"TE-EPC-LPC"]
[null,"IC","ADC","ADC0838CCWM/NPOB","JH04ABE3",null,"NA","5V","LPC","SOIC20","NATIONAL SEMICONDUCTOR",5,null,"LPC","Ordered","Yes",null,null,null,50,50,"EN-STI","EN-STI",null,"","","","To Be Tested"]
[null,"IC","Specific IC","ADM1070ART-REEL7","0211","Lot number: K60307.4; FAB ID:W2444.1"," -48V","NA","LPC","SOT23-6","ANALOG DEVICES",3,1,"LPC","Not Ordered",null,null,null,null,null,null,"T.B.D.",null,null,"not done","not done","not needed"]
[null,"IC","ADC","ADS1281",null,null,"NA","NA","CC","HTQFP-64","TEXAS INSTRUMENTS",5,2,"CC","Ordered","Yes",3,null,{"$f":"Q18*1500+R18*2000","v":4500},"-",110,"TE-EPC",null,null,"done","done","done","Fully Tested",null,"FGC2-based","TE-EPC-CC"]
[null,"Diode","Schottky Power Diode","APT2X101S20J","Date code: 1126","Lot code: A1407140.1 ALN 12F26020","120A","200V","LPC","SOT-227","MICROSEMI",5,1,"LPC","Ordered","Yes",null,null,null,30,30,"TE-EPC",null,null,{"$f":"IF(M19=\"\",\"\",IF($M19=0,\"not done\",IF($M19=1,\"not done\",IF($M19=2,\"not done\",))))","v":"not done"},{"$f":"IF(M19=\"\",\"\",IF($M19=0,\"not needed\",IF($M19=1,\"not done\",IF($M19=2,\"not done\",))))","v":"not done"},{"$f":"IF(M19=\"\",\"\",IF($M19=0,\"not needed\",IF($M19=1,\"not needed\",IF($M19=2,\"not done\",))))","v":"not needed"},"To Be Tested",null,null,"TE-EPC-LPC"]
[null,"Transistor","IGBT","APTGT100A120D1G","1121/1124/1134","D11017/D11021/D110032","100A","1200V","LPC","High.Pwr-Trad.","MICROSEMI",5,1,"LPC","Ordered","Yes",null,null,null,30,30,"TE-EPC",null,"FGC2","not done","not done","not needed","To Be Tested",null,null,"TE-EPC-LPC"]
[null,"Diode","Rectifier bridge","B40C1500RB",null,null,"1.6A","100V","HPM","High.Pwr-Trad.","FAGOR",1,1,"HPM","Not Ordered",null,null,null,null,null,null,"T.B.D.",null,null,"not done","not done","not needed"]
[null,"Diode","Small Signal Diode","BAS31",null,null,"200mA","90V","HPM","SOT-23","FAIRCHILD",1,1,"HPM","Not Ordered",null,null,null,null,null,null,"T.B.D.",null,null,"not done","not done","not needed"]
[null,"Diode","Small Signal Diode","BAT54S","KL4",null,"200mA","30V","LPC","SOT-23","MULTICOMP",5,1,"LPC","Ordered","Yes",null,null,null,50,50,"EN-STI","EN-STI","FGC2","not done","not done","not needed","To Be Tested",null,null,"TE-EPC-LPC"]
[null,"Diode","General Purpose Diode","BAV101",null,null,"250mA","120V","HPM","SOD80C","PHILIPS",1,1,"HPM","Not Ordered",null,null,null,null,null,null,"T.B.D.",null,null,"not done","not done","not needed"]
[null,"Diode","Small Signal Diode","BAV99",null,null,"0.2A","70V","CC","SOT-23","FAIRCHILD",3,0,"CC-LPC","Not Ordered","No",null,null,{"$f":"Q25*1500+R25*2000","v":0},null,null,"EN-STI","EN-STI","FGC2","not done","not needed","not needed","To Be Tested",null,null,"TE-EPC-LPC"]
[null,"Diode","Small Signal Diode","BAV99","A7",null,"0.2A","70V","LPC","SOT23","MULTICOMP",3,0,"CC-LPC","Ordered","Yes",43,5,74500,50,50,"EN-STI","EN-STI",null,"not done","not needed","not needed","To Be Tested"]
[null,"Diode","Small Signal Diode","BAW56","A1",null,"0.2A","70V","LPC","SOT23","NXP (PHILIPS)",3,1,"LPC","Ordered","Yes",null,null,null,50,50,"EN-STI","EN-STI",null,"not done","not done","not needed","To Be Tested",null,null,"TE-EPC-LPC"]
[null,"Transistor","Bipolar PNP","BC807-25 ",null,null,"1A5","5V0, 50v","CC","SOT-23","NATIONAL SEMICONDUCTOR",3,0,"CC","Ordered","Yes",2,null,{"$f":"Q28*1500+R28*2000","v":3000},"-",3000,"EN-STI","EN-STI","FGC2","not done","not needed","not needed","To Be Tested",null,"Switch-Tester","TE-EPC-LPC"]
[null,"Transistor","Bipolar NPN","BC817-25 ","A1",null,"NA","5V0, 50v","CC","SOT-23","PHILIPS",3,0,"CC","Ordered","Yes",28,null,42000,"-",3000,"EN-STI","EN-STI","FGC2","not done","not needed","not needed","To Be Tested",null,"Switch-Tester","TE-EPC-LPC"]
[null,"Transistor","Bipolar NPN","BC846B","18W14",null,"100mA","65V","HPM","SOT23","NXP",2,1,"HPM","Ordered","Yes",null,null,null,50,50,"EN-STI","EN-STI",null,"not done","not done","not needed","To Be Tested"]
[null,"Transistor","Bipolar PNP","BC856B","3B",null," -100mA"," -65V","HPM","SOT23","MULTICOMP",2,1,"HPM","Ordered","Yes",null,null,null,50,50,"EN-STI","EN-STI",null,"not done","not done","not needed","To Be Tested"]
[null,"Transistor","Bipolar PNP","BCP53",null,null," -1A"," -80V","LPC","SOT-223","NXP (PHILIPS)",5,1,"LPC","Ordered","Yes",null,null,null,null,null,"EN-STI","EN-STI",null,"not done","not done","not needed","Fully Tested",null,null,"TE-EPC-LPC"]
[null,"Transistor","Bipolar PNP","BCP53",null,null,"1A2","100V","CC","SOT-223","NXP/PHILIPS",3,0,"CC","Ordered","Yes",2,null,{"$f":"Q33*1500+R33*2000","v":3000},"-",83,"EN-STI","EN-STI","FGC2","not done","done","not needed","To Be Tested",null,"Switch-Tester","TE-EPC-LPC"]
[null,"Transistor","Bipolar NPN","BCP56",null,null,"1A","80V","LPC","SOT-223","NXP (PHILIPS)",5,1,"LPC","Ordered","Yes",null,null,null,null,null,"EN-STI","EN-STI","","not done",{"$f":"IF(M34=\"\",\"\",IF($M34=0,\"not needed\",IF($M34=1,\"not done\",IF($M34=2,\"not done\",))))","v":"not done"},"not needed","Fully Tested",null,null,"TE-EPC-LPC"]
[null,"Transistor","Bipolar NPN","BD237","JB105",null,"2A","80V","HPM","SOT-32","ST-MICROELECTRONICS",2,1,"HPM","Ordered","Yes",null,null,null,50,50,"EN-STI","EN-STI",null,"not done","not done","not needed","To Be Tested"]
[null,"Transistor","Bipolar PNP","BD238","JB045",null,"2A","80V","HPM","SOT-32","ST-MICROELECTRONICS",2,1,"HPM","Ordered","Yes",null,null,null,50,50,"EN-STI","EN-STI",null,"not done","not done","not needed","To Be Tested"]
[null,"Transistor","Mosfet-?","BRF30??",null,null,null,null,"HPM",null,null,1,1,"HPM","Not Ordered",null,null,null,null,null,null,"T.B.D.",null,null,"not done","not done","not needed"]
[null,"Transistor","Bipolar NPN","BSR17",null,null,"100mA","40V","LPC","SOT23","NXP (PHILIPS)",5,1,"LPC","Ordered","Yes",null,null,null,null,null,"EN-STI","EN-STI",null,"not done","not done","not needed","Fully Tested",null,null,"TE-EPC-LPC"]
[null,"Transistor","Bipolar PNP","BSR18",null,null," -100mA"," -40V","LPC","SOT23","NXP (PHILIPS)",5,1,"LPC","Ordered","Yes",null,null,null,null,null,"EN-STI","EN-STI",null,"not done","not done","not needed","Fully Tested",null,null,"TE-EPC-LPC"]
[null,"Transistor","Mosfet-N","BST82","02W 60",null,"190mA","100V","LPC + HPM","SOT23","PHILIPS",5,1,"LPC","Ordered","No",null,null,null,50,0,"EN-STI","EN-STI",null,"not done","not done","not needed","Under Test",null,null,"TE-EPC-LPC"]
[null,"Diode","General Purpose Diode","BYD17D",null,null,"1.5A","200V","HPM","SOD87","PHILIPS",1,1,"HPM","Not Ordered",null,null,null,null,null,null,"T.B.D.",null,null,"not done","not done","not needed"]
[null,"Diode","Zener Diode","BZT03C200",null,null,"NA","200V","LPC","SOD-57","VISHAY",5,1,"LPC","Ordered","No",null,null,null,40,40,"EN-STI","EN-STI","FGC2","not done","not done","not needed","To Be Tested",null,null,"TE-EPC-LPC"]
[null,"Diode","Zener Diode","BZV55-B13,115","N/A",null,"NA","13V","LPC","SOD80C","NXP (PHILIPS)",5,1,"LPC","Ordered","Yes",null,null,null,50,50,"EN-STI","EN-STI","FGC2","not done","not done","not needed","To Be Tested",null,null,"TE-EPC-LPC"]
[null,"Diode","Zener Diode","BZV55-B2V7,115","N/A",null,"NA","2.7V..30V","LPC","SOD80C","NXP (PHILIPS)",5,1,"LPC","Ordered","Yes",null,null,null,50,50,"EN-STI","EN-STI","","not done","not done","not needed","To Be Tested",null,null,"TE-EPC-LPC"]
[null,"Diode","Zener Diode","BZV55-B6V8,115","N/A",null,"NA","6.8V","LPC","SOD80C","NXP (PHILIPS)",5,1,"LPC","Ordered","Yes",null,null,null,50,50,"EN-STI","EN-STI","","not done","not done","not needed","To Be Tested",null,null,"TE-EPC-LPC"]
[null,"Diode","Zener Diode","BZX85C3V9",null,null,"NA","3.9V","CC","DO-41","?",3,0,"CC","Ordered","Yes",1,null,{"$f":"Q46*1500+R46*2000","v":1500},"-",300,"EN-STI","EN-STI","FGC2","not done","not needed","not needed","To Be Tested",null,"Switch-Tester","TE-EPC-LPC"]
[null,"Diode","Zener Diode","BZX85C6V2",null,null,"NA","6.2V","CC",null,"?",3,0,"CC","Ordered","Yes",1,null,1500,"-",300,"EN-STI","EN-STI","FGC2","not done","not needed","not needed","To Be Tested",null,"Switch-Tester","TE-EPC-LPC"]
[null,"IC","LEM","CSNS300Mdts","XP11438",null,"300A","NA","LPC","High.Pwr-Trad.","HONEYWELL",5,1,"LPC","Ordered","Yes",null,null,null,30,30,"TE-EPC-LPC",null,"FGC2","not done","not done","not needed","To Be Tested"]
[null,"Diode","Rectifier bridge","DDB6U145N16L","1105 or 1114","HI0082PO HI0114PO","100A","1600V","LPC","High.Pwr-Trad.","INFINEON",5,1,"LPC","Ordered","Yes",null,null,null,10,10,"TE-EPC",null,null,"not done","not done","not needed","To Be Tested",null,null,"TE-EPC-LPC"]
[null,"IC","Analog Switch","DG412DY",null,null,null,null,null,null,"VISHAY SILICONIX",4,1,"CC","Ordered","Yes",3,null,{"$f":"Q50*1500+R50*2000","v":4500},"-",400,"EN-STI","EN-STI","FGC2","not done","done",{"$f":"IF(M50=\"\",\"\",IF($M50=0,\"not needed\",IF($M50=1,\"not needed\",IF($M50=2,\"not done\",))))","v":"not needed"},"Report pending",null,"Q1?","TE-EPC-CC"]
[null,"IC","Analog Switch","DG445CY",null,null,"NA","NA","LPC","SO16","MAXIM",2,1,"LPC","Not Ordered",null,null,null,null,null,null,"T.B.D.",null,null,"not done","not done","not needed"]
[null,"IC","DALLAS Thermometer","DS18B20",null,null,"NA","3V0-5V5","CC","uSOP","MAXIM",4,0,"CC","Ordered","Yes",3,1,{"$f":"Q52*1500+R52*2000","v":6500},"-",150,"TE-EPC",null,"FGC2","done","not needed","not needed","Fully Tested",null,"DALLAS tester","TE-EPC-CC"]
[null,"Diode","Schottky Power Diode","DSS2X111-008A","1122","lot number: 267666","110A",80,"LPC","SOT-227","IXYS",5,1,"LPC","Ordered","Yes",null,null,null,30,30,"TE-EPC",null,null,{"$f":"IF(M53=\"\",\"\",IF($M53=0,\"not done\",IF($M53=1,\"not done\",IF($M53=2,\"not done\",))))","v":"not done"},"not done","not needed","To Be Tested",null,null,"TE-EPC-LPC"]
[null,"Diode","Fast/Ultra Fast recovery","ES1D-E3/5AT","ED13",null,"1A",100,"LPC","DO-214AC","VISHAY",5,1,"LPC","Ordered","Yes",null,null,null,200,200,"EN-STI","EN-STI","","not done","not done","not needed","To Be Tested",null,null,"TE-EPC-LPC"]
[null,"Transistor","IGBT","F4-75R12KS4","1107","SP000100432; H21011P0; 95046689","75A","1200V","LPC","High.Pwr-Trad.","INFINEON",5,1,"LPC","Ordered","Yes",null,null,null,10,10,"TE-EPC",null,"","not done","not done","not needed","To Be Tested",null,null,"TE-EPC-LPC"]
[null,"Transistor","Mosfet-N","FB180SA10",null,null,"180A","100V","LPC","SOT-227","INTERNATIONAL RECTIFIER",2,1,"LPC","Not Ordered",null,null,null,null,null,null,"T.B.D.",null,null,"not done","not done","not needed",null,null,null,"TE-EPC-LPC"]
[null,"Transistor","IGBT","FF150R12KS4","1113","SP000100706; HB2327P0, 95053215","150A","1200V","LPC","High.Pwr-Trad.","INFINEON",5,1,"LPC","Ordered","Yes",null,null,null,10,10,"TE-EPC",null,"FGC2","not done","not done","not needed","To Be Tested",null,null,"TE-EPC-LPC"]
[null,"Transistor","IGBT","FF150R12RT4","1041 or 1109",null,"150A","1200V","LPC","High.Pwr-Trad.","INFINEON",5,1,"LPC","Ordered","Yes",null,null,null,30,29,"TE-EPC",null,"FGC2","not done","not done","not needed","To Be Tested",null,null,"TE-EPC-LPC"]
[null,"Transistor","Bipolar PNP","FMMT591",null,null,"1A","60V","CC","SOT-23","ZETEX SEMICONDUCTORS FMMT491",3,0,"CC","Ordered","Yes",3,null,{"$f":"Q59*1500+R59*2000","v":4500},"-",1700,"EN-STI","EN-STI","FGC2","done","not needed","not needed","Fully Tested",null,"Switch-Tester","TE-EPC-LPC"]
[null,"Diode","Fast/Ultra Fast recovery","FS1A",null,null,"1A","50V","HPM","SMAE","CTC",1,1,"HPM","Not Ordered",null,null,null,null,null,null,"T.B.D.",null,null,{"$f":"IF(M60=\"\",\"\",IF($M60=0,\"not done\",IF($M60=1,\"not done\",IF($M60=2,\"not done\",))))","v":"not done"},"not done","not needed"]
[null,"IC","Opto/Photo coupler","HCNR200-300E","1102",null,"NA","NA","LPC","SO-8","HEWLETT-PACKARD",5,1,"CC-LPC","Ordered","Yes",null,null,{"$f":"Q61*1500+R61*2000","v":0},50,31,"EN-STI","EN-STI",null,"not done","DONE","not needed","Fully Tested",null,null,"TE-EPC-LPC"]
[null,"IC","Operational Amplifier","INA141U ",null,null,"NA","NA","LPC","SO-8","TEXAS INSTRUMENTS",5,1,"LPC","Ordered","No",null,null,null,null,0,"EN-STI","EN-STI","FGC2","not done","not done","not needed","Fully Tested",null,null,"TE-EPC-LPC"]
[null,"IC","Mosfet Driver","IR2117S",null,null,"Vout=10-20V","Voffset=600V","LPC","SOIC8","INTERNATIONAL RECTIFIER",2,1,"LPC","Not Ordered",null,null,null,null,null,null,"T.B.D.",null,null,"not done",{"$f":"IF(M63=\"\",\"\",IF($M63=0,\"not needed\",IF($M63=1,\"not done\",IF($M63=2,\"not done\",))))","v":"not done"},"not needed"]
[null,"Transistor","Mosfet-N","IRFB4310PBF","0111","Assembly line=D; Assembly lot code=Z1W1","140A","100V","LPC","TO-220","INTERNATIONAL RECTIFIER",5,1,"LPC","Ordered","Yes",null,null,null,50,20,"EN-STI","EN-STI",null,"not done","not done","not needed","Under Test",null,null,"TE-EPC-LPC"]
[null,"Transistor","Mosfet-N","IRFBE30PBF",null,"Y06K GY or Y06K HA or Y07K BT(new order)","4.1A","800V","LPC","TO-220AB","VISHAY",5,1,"LPC","Ordered","No",null,null,null,50,40,"TE-EPC",null,"","not done","not done","not needed","To Be Tested",null,null,"TE-EPC-LPC"]
[null,"Transistor","Mosfet-N","IRFL110",null,null,"1.5A",40,"CC","SOT-223","INTERNATIONAL RECTIFIER",3,0,"CC","Ordered","Yes",10,null,{"$f":"Q66*1500+R66*2000","v":15000},"-",2500,"EN-STI","EN-STI","FGC2","not done","not needed","not needed","To Be Tested",null,"Switch-Tester","TE-EPC-LPC"]
[null,"Transistor","Mosfet-N","IRFR224",null,null,"3.8A","250V","LPC","TO-252AA-(DPAK)","INTERNATIONAL RECTIFIER",2,1,"LPC","Not Ordered",null,null,null,null,null,null,"T.B.D.",null,null,"not done","not done","not needed",null,null,null,"TE-EPC-LPC"]
[null,"Transistor","Mosfet-N","IRFR4105ZPBF",null,"128P R4 3U","30A","55V","LPC","D-PAK","IR",5,1,"LPC","Ordered","Yes",null,null,null,25,25,"EN-STI","EN-STI","FGC2","not done","not done","not needed","To Be Tested",null,null,"TE-EPC-LPC"]
[null,"Transistor","Mosfet-P","IRFR9220TRPBF","912WAC",null," -3.6A"," -200V","LPC","TO-252AA-(DPAK)","VISHAY",5,1,"LPC","Ordered","No",null,null,null,50,0,"EN-STI","EN-STI",null,"not done","not done","not needed","Under Test",null,null,"TE-EPC-LPC"]
[null,"Transistor","IGBT","IRG4PH40UD ",null,null,"21A","1200V","LPC","TO-247AC","INTERNATIONAL RECTIFIER",2,1,"LPC","Ordered","Yes",null,null,null,null,null,"TE-EPC",null,null,"not done","not done","not needed","Fully Tested",null,null,"TE-EPC-LPC"]
[null,"Transistor","IGBT","IRG4PH50S ",null,null,"33A","1200V","LPC","TO-247AC","INTERNATIONAL RECTIFIER",2,1,"LPC","Ordered","Yes",null,null,null,null,null,"TE-EPC",null,null,"not done","not done","not needed","Fully Tested",null,null,"TE-EPC-LPC"]
[null,"Transistor","Thyristor","IRKT136/12",null,null,"135A","1600V","LPC","INT-A-Pak","INTERNATIONAL RECTIFIER",2,1,"LPC","Not Ordered",null,null,null,null,null,null,"T.B.D.",null,null,"not done","not done","not needed",null,null,null,"TE-EPC-LPC"]
[null,"Transistor","Mosfet-N","IRLR3105PBF",null,"P107D T2 L6 or P113D B6 M0 (new order)","25A","55V","LPC","D-PAK","IR",5,1,"LPC","Ordered","No",null,null,null,65,40,"EN-STI","EN-STI","FGC2","not done","not done","not needed","To Be Tested",null,null,"TE-EPC-LPC"]
[null,"Transistor","Mosfet-N","IXFP4N100Q","TS1128","S5732","4A","1000V","LPC","TO-220","IXYS",5,1,"LPC","Ordered","Yes",null,null,null,10,10,"TE-EPC",null,"","not done","not done","not needed","To Be Tested",null,null,"TE-EPC-LPC"]
[null,"Diode","Rectifier bridge","KBU8K",null,null,"8A","800V","HPM","KBU4","GENERAL SEMICONDUCTOR",1,1,"HPM","Not Ordered",null,null,null,null,null,null,"T.B.D.",null,null,"not done","not done","not needed"]
[null,"IC","LEM","LA 125-P",null,null,"125A","NA","LPC","High.Pwr-Trad.","LEM",2,1,"LPC","Not Ordered",null,null,null,null,null,null,"T.B.D.",null,null,"not done","not done","not needed"]
[null,"IC","LEM","LA 306-S","R711115 or R711116",null,"300A","NA","LPC","High.Pwr-Trad.","LEM",5,1,"LPC","Ordered","Yes",null,null,null,20,20,"TE-EPC-LPC",null,"FGC2","not done","not done","not needed","To Be Tested"]
[null,"LED","Red/green bi-color LED","LED_AVAGO_HSMF-A203-A00J1",null,null,null,null,null,null,"AVAGO TECHNOLOGIES",0,0,"CC","Ordered","Yes",6,4,{"$f":"Q78*1500+R78*2000","v":17000},"-",4000,"EN-STI","EN-STI",null,"not done","not needed",{"$f":"IF(M78=\"\",\"\",IF($M78=0,\"not needed\",IF($M78=1,\"not needed\",IF($M78=2,\"not done\",))))","v":"not needed"},"To Be Tested",null,"To be tested?","TE-EPC-LPC"]
[null,"IC","Voltage Regulator","LHC4913",null,null,"1/3A","3-12V","CC","PowerSO-20 slug-up","STMicroelectronics",0,1,"CC","Ordered","NO",2,null,3000,"-","-","EN-STI","EN-STI",null,"not needed","done","not needed","Fully Tested",null,"Switch-Tester","TE-EPC-LPC"]
[null,"Diode","Small Signal Diode","LL4448",null,null,"0.150A","100V","HPM","SOD-80","VISHAY",1,1,"HPM","Not Ordered",null,null,null,null,null,null,"T.B.D.",null,null,{"$f":"IF(M80=\"\",\"\",IF($M80=0,\"not done\",IF($M80=1,\"not done\",IF($M80=2,\"not done\",))))","v":"not done"},{"$f":"IF(M80=\"\",\"\",IF($M80=0,\"not needed\",IF($M80=1,\"not done\",IF($M80=2,\"not done\",))))","v":"not done"},"not needed"]
[null,"IC","Operational Amplifier","LM124 ",null,null,"3mA","32V","LPC","SOIC14","TEXAS INSTRUMENTS",5,1,"LPC","Unknown","No",null,null,null,null,null,"EN-STI","EN-STI","FGC2","not done","not done","not needed",null,null,null,"TE-EPC-LPC"]
[null,"IC","Voltage Regulator","LM2941CS/NOPB","PM03AHE3",null,"26V","NA","HPM","TO-263","NATIONAL SEMICONDUCTOR",2,1,"HPM","Ordered","Yes",null,null,null,50,50,"EN-STI","EN-STI",null,"not done","not done","not needed","To Be Tested"]
[null,"IC","Voltage Regulator","LM2991S","JM05ABE3","P+"," -26V","NA","HPM","TO-263","NATIONAL SEMICONDUCTOR",2,1,"HPM","Ordered","Yes",null,null,null,50,50,"EN-STI","EN-STI",null,"not done","not done","not needed","To Be Tested"]
[null,"IC","Operational Amplifier","LM321MF","0330","Lot code: EMT76073K019","NA","NA","LPC","SOT23-5","NATIONAL SEMICONDUCTOR",3,1,"LPC","Not Ordered","Yes",null,null,null,null,null,"T.B.D.",null,null,"not done","not done","not needed",null,null,null,"TE-EPC-LPC"]
[null,"IC","Operational Amplifier","LM324",null,null,"NA","32V","HPM","SOIC14","NATIONAL SEMICONDUCTOR",1,1,"HPM","Not Ordered",null,null,null,null,null,null,"T.B.D.",null,null,"not done","not done","not needed"]
[null,"IC","Comparator","LM339D","OBD3TSKG4",null,"1.3mA","32V","LPC","SOT108-1","TEXAS INSTRUMENTS",5,1,"LPC","Ordered","Yes",null,null,null,50,33,"EN-STI","EN-STI",null,"not done","not done","not needed","Fully Tested",null,null,"TE-EPC-LPC"]
[null,"IC","Voltage Regulator","LM340MP-5.0 ",null,null,"NA","5V0","CC","TO-3","NATIONAL SEMICONDUCTOR",5,1,"CC","Ordered","Yes",null,null,{"$f":"Q87*1500+R87*2000","v":0},"-",134,"EN-STI","EN-STI","FGC2","done","done","not needed","Fully Tested",null,"Switch-Tester","TE-EPC-LPC"]
[null,"IC","Voltage Reference","LM4040DIM3-5.0 ","0506","lot number : EMU77406B043; part marking: R5D","5V","NA","LPC","SOT23","NATIONAL SEMICONDUCTOR",3,1,"LPC","Not Ordered",null,null,null,null,null,9,"T.B.D.",null,null,{"$f":"IF(M88=\"\",\"\",IF($M88=0,\"not done\",IF($M88=1,\"not done\",IF($M88=2,\"not done\",))))","v":"not done"},{"$f":"IF(M88=\"\",\"\",IF($M88=0,\"not needed\",IF($M88=1,\"not done\",IF($M88=2,\"not done\",))))","v":"not done"},"not needed",null,null,null,"TE-EPC-LPC"]
[null,"IC","Voltage Reference","LM4041DIM3ADJ ",null,null,"1.24V.ref","NA","LPC","SOT23","NATIONAL SEMICONDUCTOR",5,1,"LPC","Ordered","No",null,null,null,null,0,"EN-STI","EN-STI","FGC2",{"$f":"IF(M89=\"\",\"\",IF($M89=0,\"not done\",IF($M89=1,\"not done\",IF($M89=2,\"not done\",))))","v":"not done"},{"$f":"IF(M89=\"\",\"\",IF($M89=0,\"not needed\",IF($M89=1,\"not done\",IF($M89=2,\"not done\",))))","v":"not done"},"not needed","Fully Tested",null,null,"TE-EPC-LPC"]
[null,"IC","Precision Temperature Sensor","LM45CIM3",null,null,null,null,null,"SOT-23","NATIONAL SEMICONDUCTOR",4,1,"CC","Ordered","Yes",1,null,{"$f":"Q90*1500+R90*2000","v":1500},"-",940,"EN-STI","EN-STI","FGC2","done","done","not needed","Fully Tested",null,"Switch-Tester","TE-EPC-LPC"]
[null,"IC","Comparator","LP339D",null,null,"NA","30V","LPC","SOIC14","TEXAS INSTRUMENTS  ",3,1,"LPC","Not Ordered",null,null,null,null,null,null,"T.B.D.",null,null,{"$f":"IF(M91=\"\",\"\",IF($M91=0,\"not done\",IF($M91=1,\"not done\",IF($M91=2,\"not done\",))))","v":"not done"},{"$f":"IF(M91=\"\",\"\",IF($M91=0,\"not needed\",IF($M91=1,\"not done\",IF($M91=2,\"not done\",))))","v":"not done"},"not needed","Fully Tested",null,null,"TE-EPC-LPC"]
[null,"IC","Comparator","LP339M/NOPB","JM06ABE3",null,"0.1mA","36V","LPC","SOIC14","NATIONAL SEMICONDUCTOR",5,1,"LPC","Ordered","Yes",null,null,null,50,34,"EN-STI","EN-STI",null,{"$f":"IF(M92=\"\",\"\",IF($M92=0,\"not done\",IF($M92=1,\"not done\",IF($M92=2,\"not done\",))))","v":"not done"},{"$f":"IF(M92=\"\",\"\",IF($M92=0,\"not needed\",IF($M92=1,\"not done\",IF($M92=2,\"not done\",))))","v":"not done"},"not needed","Under Test",null,null,"TE-EPC-LPC"]
[null,"IC","Voltage reference","LT1236ACS8-10",null,null,null,null,null,null,"LINEAR TECHNOLOGIY",5,1,"CC","Ordered","Yes",1,null,{"$f":"Q93*1500+R93*2000","v":1500},"-",100,"EN-STI","EN-STI","FGC2","done","done","not needed","Report Pending",null,"Switch-Tester","TE-EPC-LPC"]
[null,"Transistor","Bipolar NPN","MAT-01GH","1124 / 1147 / ",null,"25mA","45V","HPM","TO-78","ANALOG DEVICES",2,1,"HPM","Ordered","Yes",null,null,null,50,50,"EN-STI","EN-STI",null,{"$f":"IF(M94=\"\",\"\",IF($M94=0,\"not done\",IF($M94=1,\"not done\",IF($M94=2,\"not done\",))))","v":"not done"},{"$f":"IF(M94=\"\",\"\",IF($M94=0,\"not needed\",IF($M94=1,\"not done\",IF($M94=2,\"not done\",))))","v":"not done"},"not needed","To Be Tested"]
[null,"IC","Multiplexer","MAX337CWI",null,null,null,null,null,null,"MAXIM",5,1,"CC","Ordered","Yes",1,null,{"$f":"Q95*1500+R95*2000","v":1500},"-",100,"EN-STI","EN-STI","FGC2","done","done",{"$f":"IF(M95=\"\",\"\",IF($M95=0,\"not needed\",IF($M95=1,\"not needed\",IF($M95=2,\"not done\",))))","v":"not needed"},"Report Pending",null,"Q1?","TE-EPC-CC"]
[null,"IC","RS485/422 Driver","MAX3491",null,null,"NA","3V3","CC","8 SO/8 Plastic DIP","MAXIM",4,1,"CC","Ordered","Yes",4,3,12000,"-",200,"EN-STI","EN-STI",null,{"$f":"IF(M96=\"\",\"\",IF($M96=0,\"not done\",IF($M96=1,\"not done\",IF($M96=2,\"not done\",))))","v":"not done"},"done","not needed","Fully Tested",null,"Q2?","TE-EPC-CC"]
[null,"IC","DAC","MAX5541CSA",null,null,"NA","5V0","CC","8 SO","MAXIM",5,1,"CC","Ordered","Yes",1,null,1500,"-",100,"TE-EPC",null,null,"done","done","not needed","Fully Tested",null,"FGC2-based","TE-EPC-CC"]
[null,"IC","Watchdog","MAX824LEUK-T",null,null,"10uA","5.5V","LPC","SOT23","MAXIM",2,1,"LPC","Not Ordered",null,null,null,null,null,null,"T.B.D.",null,null,{"$f":"IF(M98=\"\",\"\",IF($M98=0,\"not done\",IF($M98=1,\"not done\",IF($M98=2,\"not done\",))))","v":"not done"},{"$f":"IF(M98=\"\",\"\",IF($M98=0,\"not needed\",IF($M98=1,\"not done\",IF($M98=2,\"not done\",))))","v":"not done"},"not needed"]
[null,"Transistor","Bipolar NPN","MD2310FX",null,"B836 or B825 or B107 (new order)","14A","700V","LPC","TO-3PF","ST-MICROELECTRONICS",5,1,"LPC","Ordered","No",null,null,null,50,40,"TE-EPC",null,null,{"$f":"IF(M99=\"\",\"\",IF($M99=0,\"not done\",IF($M99=1,\"not done\",IF($M99=2,\"not done\",))))","v":"not done"},"not done","not needed","To Be Tested",null,null,"TE-EPC-LPC"]
[null,"IC ","Voltage Regulator","MIC37302",null,null,null,null,null,null,"MICREL",5,1,"CC","Ordered","Yes",null,2,{"$f":"Q100*1500+R100*2000","v":4000},"-",240,"EN-STI","EN-STI",null,"done","done","not needed","To Be Tested",null,"Switch-Tester","TE-EPC-LPC"]
[null,"IC","PWM","MIC38HC45BM",null,null,"4mA","20V","LPC","SOIC8","MICREL",5,1,"LPC","To Be Ordered","No",null,null,null,null,null,"T.B.D.",null,"FGC2",{"$f":"IF(M101=\"\",\"\",IF($M101=0,\"not done\",IF($M101=1,\"not done\",IF($M101=2,\"not done\",))))","v":"not done"},"not done","not needed","To Be Tested"]
[null,"Transistor","Bipolar NPN","MJ15003",null,null,"20A","140V","HPM","TO-3","ON SEMICONDUCTOR",1,1,"HPM","Not Ordered",null,null,null,null,null,null,"T.B.D.",null,null,"not done","not done","not needed"]
[null,"Transistor","Bipolar PNP","MJD45H11",null,null,"8A","80V","LPC","DPAK","FAIRCHILD",2,1,"LPC","Not Ordered",null,null,null,null,null,null,"TE-EPC",null,null,"not done","not done","not needed",null,null,null,"TE-EPC-LPC"]
[null,"Transistor","Bipolar NPN","MJE4343",null,null,"16A","160V","HPM","TO-218","ON SEMICONDUCTOR",1,1,"HPM","Not Ordered",null,null,null,null,null,null,"T.B.D.",null,null,"not done","not done","not needed"]
[null,"Transistor","Bipolar PNP","MJE4353",null,null,"16A","160V","HPM","TO-218","ON SEMICONDUCTOR",1,1,"HPM","Not Ordered",null,null,null,null,null,null,"T.B.D.",null,null,"not done","not done","not needed"]
[null,"IC","Operational Amplifier","OP07CSZ","1965588",null,"NA","18V","HPM","SOIC8","ANALOG DEVICES",2,1,"HPM","Ordered","Yes",null,null,null,50,50,"EN-STI","EN-STI",null,"not done","not done","not needed","To Be Tested"]
[null,"IC","Operational Amplifier","OP184 F",null,null,"NA","36V","HPM","SOIC8","ANALOG DEVICES",1,1,"HPM","Not Ordered",null,null,null,null,null,null,"T.B.D.",null,null,"not done","not done","not needed"]
[null,"IC","Operational Amplifier","OP27EPZ","1109","C72217","NA","22V","HPM","DIP8","ANALOG DEVICES",2,1,"HPM","Ordered","Yes",null,null,null,50,50,"EN-STI","EN-STI",null,"not done","not done","not needed","To Be Tested"]
[null,"IC","Operational Amplifier","OP27GP",null,null,"NA","22V","HPM","DIP8","TEXAS INSTRUMENTS",1,1,"HPM","Not Ordered",null,null,null,null,null,null,"T.B.D.",null,null,"not done","not done","not needed"]
[null,"IC","Operational Amplifier","OP27GS",null,null,"NA","22V","HPM","SOIC8","TEXAS INSTRUMENTS",1,1,"HPM","Not Ordered",null,null,null,null,null,null,"T.B.D.",null,null,"not done","not done","not needed"]
[null,"IC","Operational Amplifier","OP297GSZ","1043","M80064","NA","18V","HPM","SOIC8","ANALOG DEVICES",2,1,"HPM","Ordered","Yes",null,null,null,50,50,"EN-STI","EN-STI",null,"not done","not done","not needed","To Be Tested"]
[null,"IC","Operational Amplifier","OP77EZ",1035,"E174132","NA","18V","HPM","DIP8","ANALOG DEVICES",2,1,"HPM","Ordered","Yes",null,null,null,50,50,"EN-STI","EN-STI",null,"not done","not done","not needed","To Be Tested"]
[null,"IC","Operational Amplifier","OPA2227U",null,null,null,null,null,null,"ANALOG DEVICES",3,1,"CC","Ordered","Yes",9,null,{"$f":"Q113*1500+R113*2000","v":13500},"-",900,"EN-STI","EN-STI","FGC2","done","done","not needed","To Be Tested",null,"COP-Tester","TE-EPC-LPC"]
[null,"IC","Operational Amplifier","OPA2227UA",null,null,"NA","18V","LPC","SOIC8","TEXAS INSTRUMENTS",5,1,"LPC","Ordered","Yes",null,null,null,null,61,"EN-STI","EN-STI",null,{"$f":"IF(M114=\"\",\"\",IF($M114=0,\"not done\",IF($M114=1,\"not done\",IF($M114=2,\"not done\",))))","v":"not done"},"not done","not needed","Fully Tested",null,null,"TE-EPC-LPC"]
[null,"IC","Operational Amplifier","OPA544T","05Z202V G3",null,"NA","NA","HPM","TO-220","TEXAS INSTRUMENTS",2,1,"HPM","Ordered","Yes",null,null,null,50,50,"EN-STI","EN-STI",null,{"$f":"IF(M115=\"\",\"\",IF($M115=0,\"not done\",IF($M115=1,\"not done\",IF($M115=2,\"not done\",))))","v":"not done"},"not done","not needed","To Be Tested"]
[null,"Transistor","Mosfet-N","PMBF4392,215","WGK15",null,"50mA","30V","HPM","SOT23","NXP (PHILIPS)",2,1,"HPM","Ordered","Yes",null,null,null,50,50,"EN-STI","EN-STI",null,{"$f":"IF(M116=\"\",\"\",IF($M116=0,\"not done\",IF($M116=1,\"not done\",IF($M116=2,\"not done\",))))","v":"not done"},"not done","not needed","To Be Tested"]
[null,"IC","FPGA","ProASIC-3-250-VQ100 ",null,null,"NA","3V3","CC","PQFP208","MICROSEMI",5,2,"CC","To Be Ordered","NO",null,null,{"$f":"Q117*1500+R117*2000","v":0},"-","-","TE-EPC",null,null,{"$f":"IF(M117=\"\",\"\",IF($M117=0,\"not done\",IF($M117=1,\"not done\",IF($M117=2,\"not done\",))))","v":"not done"},"done","not done","To Be Tested",null,"FPGA-based","TE-EPC-CC"]
[null,"IC","FPGA","ProASIC-3-A3P1000-PQFP208",null,null,"NA","3V3","CC","PQFP208","MICROSEMI",5,2,"CC","To Be Ordered","NO",null,null,0,"-","-","TE-EPC",null,null,{"$f":"IF(M118=\"\",\"\",IF($M118=0,\"not done\",IF($M118=1,\"not done\",IF($M118=2,\"not done\",))))","v":"not done"},"done","not done","To Be Tested",null,"FPGA-based","TE-EPC-CC"]
[null,"IC","FPGA","ProASIC3-A3P400-PQFP208",null,null,"NA","3V3","CC","PQFP208","MICROSEMI",5,2,"CC","Not Ordered","Yes",1,1,3500,"-","all","BE-CO",null,null,"not needed","done","not done","Fully Tested",null,"BE-CO","BE-CO"]
[null,"IC","Memory","R1LV1616RSA-7SI",null,null,null,null,null,null,"RENESAS",4,1,"CC","To Be Ordered","Yes",1,null,1500,"-",10,"TE-EPC",null,null,"not needed","done",{"$f":"IF(M120=\"\",\"\",IF($M120=0,\"not needed\",IF($M120=1,\"not needed\",IF($M120=2,\"not done\",))))","v":"not needed"},"Fully Tested",null,"FGC2-based or FPGA-based","TE-EPC-CC"]
[null,"Diode","Rectifier bridge","SKB 25/04",null,null,"NA","400V","HPM","G 10b","SEMIKRON",1,1,"HPM","Not Ordered",null,null,null,null,null,null,"T.B.D.",null,null,{"$f":"IF(M121=\"\",\"\",IF($M121=0,\"not done\",IF($M121=1,\"not done\",IF($M121=2,\"not done\",))))","v":"not done"},{"$f":"IF(M121=\"\",\"\",IF($M121=0,\"not needed\",IF($M121=1,\"not done\",IF($M121=2,\"not done\",))))","v":"not done"},"not needed"]
[null,"Diode","Rectifier bridge","SKD110/16","11090P R",null,"110A","1600V","LPC","High.Pwr-Trad.","SEMIKRON",5,1,"LPC","Ordered","Yes",null,null,null,10,10,"TE-EPC",null,null,"not done","not done","not needed","To Be Tested",null,null,"TE-EPC-LPC"]
[null,"AC-DC","Single Output Voltage","SL5 E300",null,null,12,"24V","LPC","Specific","PULS",5,1,"LPC","Ordered","Yes",null,null,null,null,null,"EN-STI","EN-STI",null,"not done","not done","not needed","Fully Tested"]
[null,"Diode","Voltage Suppresor","SMBJ15CA","1023BM",null,"600W","15V","LPC","JEDEC DO-214AA","MULTICOMP",5,0,"LPC","Ordered","Yes",null,null,null,50,50,"EN-STI","EN-STI","","not done","not needed","not needed","To Be Tested",null,null,"TE-EPC-LPC"]
[null,"Diode","Voltage Suppresor","SMBJ5.0CA","AA51KE",null,"600W","5V","LPC","JEDEC DO-214AA","FAIRCHILD",5,0,"LPC","Ordered","Yes",null,null,null,50,50,"EN-STI","EN-STI","FGC2","not done","not needed","not needed","To Be Tested",null,null,"TE-EPC-LPC"]
[null,"IC","Schmitt Trigger","SN74ACT14D",null,null,"NA","NA","LPC","SOIC14","TEXAS INSTRUMENTS",2,1,"LPC","Not Ordered",null,null,null,null,null,null,"T.B.D.",null,null,"not done","not done","not needed"]
[null,"IC","Bus Tranceiver","SN74LVC2T45",null,null,null,null,null,null,"TI",5,1,"CC","Ordered","Yes",28,1,{"$f":"Q127*1500+R127*2000","v":44000},"-",250,"EN-STI","EN-STI","FGC2","not done","done","not needed","To Be Tested",null,"Switch-Tester","TE-EPC-LPC"]
[null,"Oscillator","Oscillator","SPXO018042-CFPS-73",null,null,"NA","3V3-5V0","CC","7x5mm SMD","IQD Frequency Products",4,1,"CC","Ordered","Yes",5,null,7500,"-",1000,"EN-STI","EN-STI",null,"not done","done","not needed","Report Pending",null,"Q3?","TE-EPC-CC"]
[null,"IC","FIELDDRIVE line driver","SSSB231",null,null,null,null,null,null,"CEGELEC",5,2,"CC","Not Ordered","Yes",1,null,1500,"-","all","BE-CO",null,"FGC2","not needed","done","not done","To Be Tested",null,"BE-CO","BE-CO"]
[null,"Transistor","Mosfet-N","STD10NF10T4","GKOOL111 (old ones)","GKOR5134 (new ones)","13A","100V","LPC","DPAK","ST-MICROELECTRONICS",5,1,"LPC","Ordered","Yes",null,null,null,"50+50",40,"EN-STI","EN-STI",null,{"$f":"IF(M130=\"\",\"\",IF($M130=0,\"not done\",IF($M130=1,\"not done\",IF($M130=2,\"not done\",))))","v":"not done"},"not done",{"$f":"IF(M130=\"\",\"\",IF($M130=0,\"not needed\",IF($M130=1,\"not needed\",IF($M130=2,\"not done\",))))","v":"not needed"},"Under Test",null,null,"TE-EPC-LPC"]
[null,"Transistor","Mosfet-N","STP3NB100",null,null,"3.1A","1000V","LPC","TO-220","ST-MICROELECTRONICS",2,1,"LPC","Not Ordered",null,null,null,null,null,null,"T.B.D.",null,null,"not done","not done","not needed",null,null,null,"TE-EPC-LPC"]
[null,"Transistor","Mosfet-N","STP3NK80Z",null,"6403S V3 CHN 023","2.5A","800V","LPC","TO-220","ST-MICROELECTRONICS",5,1,"LPC","Ordered","Yes",null,null,null,25,25,"TE-EPC",null,"","not done","not done","not needed","To Be Tested",null,null,"TE-EPC-LPC"]
[null,"Transistor","Mosfet-N","STP4N150",null,"G401A VW CHN 132","4A","1500V","LPC","TO-220","ST-MICROELECTRONICS",5,1,"LPC","Ordered","Yes",null,null,null,10,9,"TE-EPC",null,"","not done","not done","not needed","To Be Tested",null,null,"TE-EPC-LPC"]
[null,"Transistor","Mosfet-N","STP8NK100Z",null,"640KS V1d CHN 03b or 640NV V1d CHN 04b","6.5A","1000V","LPC","TO-220","ST-MICROELECTRONICS",5,1,"LPC","Ordered","Yes",null,null,null,10,9,"TE-EPC",null,"","not done","not done","not needed","To Be Tested",null,null,"TE-EPC-LPC"]
[null,"Diode","Schottky Power Diode","STPS200170TV1","200170TV1","CZOAOVW MAR107","120A","200V","LPC","SOT-227","ST-MICROELECTRONICS",5,1,"LPC","Ordered","Yes",null,null,null,26,26,"TE-EPC",null,null,"not done","not done","not needed","To Be Tested",null,null,"TE-EPC-LPC"]
[null,"Diode","Fast/Ultra Fast recovery","STTH112U","GU12","GP045 GP047","6A","1200V","LPC","SMA/B","ST-MICROELECTRONICS",5,1,"LPC","Ordered","Yes",null,null,null,50,49,"TE-EPC",null,null,"not done","not done","not needed","To Be Tested",null,null,"TE-EPC-LPC"]
[null,"Transistor","Mosfet-N","SUD23N06-31L-E3",null,"BR L84B","23A","60V","LPC","TO-252","VISHAY",5,1,"LPC","Ordered","Yes",null,null,null,25,25,"EN-STI","EN-STI","FGC2","not done","not done","not needed","To Be Tested",null,null,"TE-EPC-LPC"]
[null,"IC","Operational Amplifier","THS4130",null,null,"NA","5V0-15V","CC","THS4130/THS4131","TEXAS INSTRUMENTS",4,1,"CC","Ordered","Yes",3,null,{"$f":"Q138*1500+R138*2000","v":4500},"-",300,"EN-STI","EN-STI",null,"not done","done","not needed","Report Pending",null,"COP-Tester","TE-EPC-LPC"]
[null,"Transistor","Bipolar NPN","TIP110",null,null,"2A","60V","HPM","TO-220","ST-MICROELECTRONICS",1,1,"HPM","Not Ordered",null,null,null,null,null,null,"T.B.D.",null,null,{"$f":"IF(M139=\"\",\"\",IF($M139=0,\"not done\",IF($M139=1,\"not done\",IF($M139=2,\"not done\",))))","v":"not done"},"not done","not needed"]
[null,"Transistor","Bipolar PNP","TIP115",null,null,"2A","60V","HPM","TO-220","ST-MICROELECTRONICS",1,1,"HPM","Not Ordered",null,null,null,null,null,null,"T.B.D.",null,null,"not done","not done","not needed"]
[null,"Transistor","Bipolar NPN","TIP33C",null,null,"10A","100V","HPM","TO-218","ST-MICROELECTRONICS",1,1,"HPM","Not Ordered",null,null,null,null,null,null,"T.B.D.",null,null,"not done","not done","not needed"]
[null,"Transistor","Bipolar PNP","TIP34C",null,null,"10A","100V","HPM","TO-218","ST-MICROELECTRONICS",1,1,"HPM","Not Ordered",null,null,null,null,null,null,"T.B.D.",null,null,"not done","not done","not needed"]
[null,"IC","Operational Amplifier","TL072",null,null,"NA","NA","LPC","Low.Pwr-SMD","TEXAS INSTRUMENTS",5,1,"LPC","Ordered","Yes",null,null,null,null,60,"EN-STI","EN-STI",null,"not done","not done","not needed","Fully Tested",null,null,"TE-EPC-LPC"]
[null,"IC","Operational Amplifier","TL084CD",null,null,"NA","NA","LPC","SOIC14","ST-MICROELECTRONICS",2,1,"LPC","Not Ordered",null,null,null,null,null,null,"T.B.D.",null,null,"not done","not done","not needed",null,null,null,"TE-EPC-LPC"]
[null,"IC","Voltage Reference","TL431IDBZTG4 ",null,null,"2.5V.ref","NA","LPC","SOT-23","TEXAS INSTRUMENTS",5,1,"LPC","Ordered","No",null,null,null,null,0,"EN-STI","EN-STI","","not done","not done","not needed","Fully Tested",null,null,"TE-EPC-LPC"]
[null,"IC","Voltage Reference","TL432BIDBZTG4 ",null,null,"2.5V.ref","NA","LPC","SOT-23","TEXAS INSTRUMENTS",5,1,"LPC","Ordered","No",null,null,null,null,0,"EN-STI","EN-STI","","not done","not done","not needed","Fully Tested",null,null,"TE-EPC-LPC"]
[null,"IC","Timer","TLC555CD",null,null,"NA","NA","LPC","SOIC8","TEXAS INSTRUMENTS",2,1,"LPC","Not Ordered",null,null,null,null,null,null,"T.B.D.",null,null,"not done","not done","not needed"]
[null,"IC","Voltage Regulator","TPS73033",null,null,null,null,null,null,"TI",5,1,"CC","Ordered","Yes",1,null,{"$f":"Q148*1500+R148*2000","v":1500},"-",47,"EN-STI","EN-STI",null,"not done","done","not needed","Report Pending",null,"Switch-Tester","TE-EPC-LPC"]
[null,"Diode","Voltage Suppresor","TVS15V",null,null,"NA",null,"CC","SOD123W","FAGOR",3,0,"CC","Ordered","Yes",12,null,18000,"-",675,"EN-STI","EN-STI","FGC2","not done","not needed","not needed","To Be Tested",null,"Switch-Tester","TE-EPC-LPC"]
[null,"IC","PWM","UCC3895DW","07ZE0LW",null,"NA","NA","LPC","SOIC20","TEXAS INSTRUMENTS",5,2,"LPC","Ordered","Yes",null,null,null,50,50,"T.B.D.",null,"FGC2","not done","not done","not done","To Be Tested"]
[null,"IC","PWM","UCC38C45DG4 ","08M","AN8E","4mA","18V","LPC","SOIC8","TEXAS INSTRUMENTS",5,1,"LPC","Ordered","Yes",null,null,null,50,50,"T.B.D.",null,"FGC2","not done","not done","not needed","To Be Tested"]
[null,"IC","Specific IC","UCC39002D",null,null,"NA","NA","LPC","SO8","TEXAS INSTRUMENTS",3,1,"LPC","Not Ordered",null,null,null,null,null,null,"T.B.D.",null,null,"not done","not done","not needed"]
[null,"Diode","Rectifier bridge","VS-26MT160","201022INVM; 201105INVM; 201107INVM","lot code: IND0F02; IND1A43; IND1B21","25A","1600V","LPC","D-63","INTERNATIONAL RECTIFIER",2,1,"LPC","Ordered","Yes",null,null,null,42,42,"TE-EPC",null,null,"not done","not done","not needed","To Be Tested",null,null,"TE-EPC-LPC"]
[null,null,null,null,null,null,null,null,null,null,null,null,null,null,null,null,null,null,null,null,null,null,null,null,{"$f":"IF(M154=\"\",\"\",IF($M154=0,\"not done\",IF($M154=1,\"not done\",IF($M154=2,\"not done\",))))","v":""},{"$f":"IF(M154=\"\",\"\",IF($M154=0,\"not needed\",IF($M154=1,\"not done\",IF($M154=2,\"not done\",))))","v":""},"",null,null,null,null,{"$f":"IF(W154=\"\",\"\",IF($M154=0,\"not needed\",IF($M154=1,\"not needed\",IF($M154=2,\"not done\",))))","v":""}]
[null,null,null,null,null,null,null,null,null,null,null,null,null,null,null,null,null,null,null,null,null,null,null,null,"","","",null,null,null,null,""]
[null,null,null,null,null,null,null,null,null,null,null,null,null,null,null,null,null,null,null,null,null,null,null,null,"","","",null,null,null,null,""]
[null,null,null,null,null,null,null,null,null,null,null,null,null,null,null,null,null,null,null,null,null,null,null,null,"","","",null,null,null,null,""]
[null,null,null,null,null,null,null,null,null,null,null,null,null,null,null,null,null,null,null,null,null,null,null,null,"","","",null,null,null,null,""]
[null,null,null,null,null,null,null,null,null,null,null,null,null,null,null,null,null,null,null,null,null,null,null,null,"","","",null,null,null,null,""]
[null,null,null,null,null,null,null,null,null,null,null,null,null,null,null,null,null,null,null,null,null,null,null,null,"","","",null,null,null,null,""]
[null,null,null,null,null,null,null,null,null,null,null,null,null,null,null,null,null,null,null,null,null,null,null,null,"","",{"$f":"IF(M161=\"\",\"\",IF($M161=0,\"not needed\",IF($M161=1,\"not needed\",IF($M161=2,\"not done\",))))","v":""},null,null,null,null,""]
[null,null,null,null,null,null,null,null,null,null,null,null,null,null,null,null,null,null,null,null,null,null,null,null,"","","",null,null,null,null,""]
[null,null,null,null,null,null,null,null,null,null,null,null,null,null,null,null,null,null,null,null,null,null,null,null,"","","",null,null,null,null,""]
[null,null,null,null,null,null,null,null,null,null,null,null,null,null,null,null,null,null,null,null,null,null,null,null,"","","",null,null,null,null,""]
[null,null,null,null,null,null,null,null,null,null,null,null,null,null,null,null,null,null,null,null,null,null,null,null,"","","",null,null,null,null,""]
[null,null,null,null,null,null,null,null,null,null,null,null,null,null,null,null,null,null,null,null,null,null,null,null,"","","",null,null,null,null,""]
[null,null,null,null,null,null,null,null,null,null,null,null,null,null,null,null,null,null,null,null,null,null,null,null,"","","",null,null,null,null,""]
[null,null,null,null,null,null,null,null,null,null,null,null,null,null,null,null,null,null,null,null,null,null,null,null,"","","",null,null,null,null,""]
[null,null,null,null,null,null,null,null,null,null,null,null,null,null,null,null,null,null,null,null,null,null,null,null,"","","",null,null,null,null,""]
[null,null,null,null,null,null,null,null,null,null,null,null,null,null,null,null,null,null,null,null,null,null,null,null,"","","",null,null,null,null,""]
[null,null,null,null,null,null,null,null,null,null,null,null,null,null,null,null,null,null,null,null,null,null,null,null,"","","",null,null,null,null,""]
[null,null,null,null,null,null,null,null,null,null,null,null,null,null,null,null,null,null,null,null,null,null,null,null,"","","",null,null,null,null,""]
[null,null,null,null,null,null,null,null,null,null,null,null,null,null,null,null,null,null,null,null,null,null,null,null,"","","",null,null,null,null,""]
[null,null,null,null,null,null,null,null,null,null,null,null,null,null,null,null,null,null,null,null,null,null,null,null,"","","",null,null,null,null,""]
[null,null,null,null,null,null,null,null,null,null,null,null,null,null,null,null,null,null,null,null,null,null,null,null,"","","",null,null,null,null,""]
[null,null,null,null,null,null,null,null,null,null,null,null,null,null,null,null,null,null,null,null,null,null,null,null,"","","",null,null,null,null,""]
[null,null,null,null,null,null,null,null,null,null,null,null,null,null,null,null,null,null,null,null,null,null,null,null,"","","",null,null,null,null,""]
[null,null,null,null,null,null,null,null,null,null,null,null,null,null,null,null,null,null,null,null,null,null,null,null,"","","",null,null,null,null,""]
[null,null,null,null,null,null,null,null,null,null,null,null,null,null,null,null,null,null,null,null,null,null,null,null,"","","",null,null,null,null,""]
[null,null,null,null,null,null,null,null,null,null,null,null,null,null,null,null,null,null,null,null,null,null,null,null,"","","",null,null,null,null,""]
[null,null,null,null,null,null,null,null,null,null,null,null,null,null,null,null,null,null,null,null,null,null,null,null,"","","",null,null,null,null,""]
[null,null,null,null,null,null,null,null,null,null,null,null,null,null,null,null,null,null,null,null,null,null,null,null,"","","",null,null,null,null,""]
[null,null,null,null,null,null,null,null,null,null,null,null,null,null,null,null,null,null,null,null,null,null,null,null,"","","",null,null,null,null,""]
[null,null,null,null,null,null,null,null,null,null,null,null,null,null,null,null,null,null,null,null,null,null,null,null,"","","",null,null,null,null,""]
[null,null,null,null,null,null,null,null,null,null,null,null,null,null,null,null,null,null,null,null,null,null,null,null,"","","",null,null,null,null,""]
[null,null,null,null,null,null,null,null,null,null,null,null,null,null,null,null,null,null,null,null,null,null,null,null,{"$f":"IF(M186=\"\",\"\",IF($M186=0,\"not done\",IF($M186=1,\"not done\",IF($M186=2,\"not done\",))))","v":""},{"$f":"IF(M186=\"\",\"\",IF($M186=0,\"not needed\",IF($M186=1,\"not done\",IF($M186=2,\"not done\",))))","v":""},"",null,null,null,null,{"$f":"IF(W186=\"\",\"\",IF($M186=0,\"not needed\",IF($M186=1,\"not needed\",IF($M186=2,\"not done\",))))","v":""}]
[null,null,null,null,null,null,null,null,null,null,null,null,null,null,null,null,null,null,null,null,null,null,null,null,"","","",null,null,null,null,""]
[null,null,null,null,null,null,null,null,null,null,null,null,null,null,null,null,null,null,null,null,null,null,null,null,"","","",null,null,null,null,""]
[null,null,null,null,null,null,null,null,null,null,null,null,null,null,null,null,null,null,null,null,null,null,null,null,"","","",null,null,null,null,""]
[null,null,null,null,null,null,null,null,null,null,null,null,null,null,null,null,null,null,null,null,null,null,null,null,"","","",null,null,null,null,""]
[null,null,null,null,null,null,null,null,null,null,null,null,null,null,null,null,null,null,null,null,null,null,null,null,"","","",null,null,null,null,""]
[null,null,null,null,null,null,null,null,null,null,null,null,null,null,null,null,null,null,null,null,null,null,null,null,"","","",null,null,null,null,""]
[null,null,null,null,null,null,null,null,null,null,null,null,null,null,null,null,null,null,null,null,null,null,null,null,"","",{"$f":"IF(M193=\"\",\"\",IF($M193=0,\"not needed\",IF($M193=1,\"not needed\",IF($M193=2,\"not done\",))))","v":""},null,null,null,null,""]
[null,null,null,null,null,null,null,null,null,null,null,null,null,null,null,null,null,null,null,null,null,null,null,null,"","","",null,null,null,null,""]
[null,null,null,null,null,null,null,null,null,null,null,null,null,null,null,null,null,null,null,null,null,null,null,null,"","","",null,null,null,null,""]
[null,null,null,null,null,null,null,null,null,null,null,null,null,null,null,null,null,null,null,null,null,null,null,null,"","","",null,null,null,null,""]
[null,null,null,null,null,null,null,null,null,null,null,null,null,null,null,null,null,null,null,null,null,null,null,null,"","","",null,null,null,null,""]
[null,null,null,null,null,null,null,null,null,null,null,null,null,null,null,null,null,null,null,null,null,null,null,null,"","","",null,null,null,null,""]
[null,null,null,null,null,null,null,null,null,null,null,null,null,null,null,null,null,null,null,null,null,null,null,null,"","","",null,null,null,null,""]
[null,null,null,null,null,null,null,null,null,null,null,null,null,null,null,null,null,null,null,null,null,null,null,null,"","","",null,null,null,null,""]
[null,null,null,null,null,null,null,null,null,null,null,null,null,null,null,null,null,null,null,null,null,null,null,null,"","","",null,null,null,null,""]
[null,null,null,null,null,null,null,null,null,null,null,null,null,null,null,null,null,null,null,null,null,null,null,null,"","","",null,null,null,null,""]
[null,null,null,null,null,null,null,null,null,null,null,null,null,null,null,null,null,null,null,null,null,null,null,null,"","","",null,null,null,null,""]
[null,null,null,null,null,null,null,null,null,null,null,null,null,null,null,null,null,null,null,null,null,null,null,null,"","","",null,null,null,null,""]
[null,null,null,null,null,null,null,null,null,null,null,null,null,null,null,null,null,null,null,null,null,null,null,null,"","","",null,null,null,null,""]
[null,null,null,null,null,null,null,null,null,null,null,null,null,null,null,null,null,null,null,null,null,null,null,null,"","","",null,null,null,null,""]
[null,null,null,null,null,null,null,null,null,null,null,null,null,null,null,null,null,null,null,null,null,null,null,null,"","","",null,null,null,null,""]
[null,null,null,null,null,null,null,null,null,null,null,null,null,null,null,null,null,null,null,null,null,null,null,null,"","","",null,null,null,null,""]
[null,null,null,null,null,null,null,null,null,null,null,null,null,null,null,null,null,null,null,null,null,null,null,null,"","","",null,null,null,null,""]
[null,null,null,null,null,null,null,null,null,null,null,null,null,null,null,null,null,null,null,null,null,null,null,null,"","","",null,null,null,null,""]
[null,null,null,null,null,null,null,null,null,null,null,null,null,null,null,null,null,null,null,null,null,null,null,null,"","","",null,null,null,null,""]
[null,null,null,null,null,null,null,null,null,null,null,null,null,null,null,null,null,null,null,null,null,null,null,null,"","","",null,null,null,null,""]
[null,null,null,null,null,null,null,null,null,null,null,null,null,null,null,null,null,null,null,null,null,null,null,null,"","","",null,null,null,null,""]
[null,null,null,null,null,null,null,null,null,null,null,null,null,null,null,null,null,null,null,null,null,null,null,null,"","","",null,null,null,null,""]
[null,null,null,null,null,null,null,null,null,null,null,null,null,null,null,null,null,null,null,null,null,null,null,null,"","","",null,null,null,null,""]
[null,null,null,null,null,null,null,null,null,null,null,null,null,null,null,null,null,null,null,null,null,null,null,null,"","","",null,null,null,null,""]
[null,null,null,null,null,null,null,null,null,null,null,null,null,null,null,null,null,null,null,null,null,null,null,null,"","","",null,null,null,null,""]
[null,null,null,null,null,null,null,null,null,null,null,null,null,null,null,null,null,null,null,null,null,null,null,null,{"$f":"IF(M218=\"\",\"\",IF($M218=0,\"not done\",IF($M218=1,\"not done\",IF($M218=2,\"not done\",))))","v":""},{"$f":"IF(M218=\"\",\"\",IF($M218=0,\"not needed\",IF($M218=1,\"not done\",IF($M218=2,\"not done\",))))","v":""},"",null,null,null,null,{"$f":"IF(W218=\"\",\"\",IF($M218=0,\"not needed\",IF($M218=1,\"not needed\",IF($M218=2,\"not done\",))))","v":""}]
[null,null,null,null,null,null,null,null,null,null,null,null,null,null,null,null,null,null,null,null,null,null,null,null,"","","",null,null,null,null,""]
[null,null,null,null,null,null,null,null,null,null,null,null,null,null,null,null,null,null,null,null,null,null,null,null,"","","",null,null,null,null,""]
[null,null,null,null,null,null,null,null,null,null,null,null,null,null,null,null,null,null,null,null,null,null,null,null,"","","",null,null,null,null,""]
[null,null,null,null,null,null,null,null,null,null,null,null,null,null,null,null,null,null,null,null,null,null,null,null,"","","",null,null,null,null,""]
[null,null,null,null,null,null,null,null,null,null,null,null,null,null,null,null,null,null,null,null,null,null,null,null,"","","",null,null,null,null,""]
[null,null,null,null,null,null,null,null,null,null,null,null,null,null,null,null,null,null,null,null,null,null,null,null,"","","",null,null,null,null,""]
[null,null,null,null,null,null,null,null,null,null,null,null,null,null,null,null,null,null,null,null,null,null,null,null,"","",{"$f":"IF(M225=\"\",\"\",IF($M225=0,\"not needed\",IF($M225=1,\"not needed\",IF($M225=2,\"not done\",))))","v":""},null,null,null,null,""]
[null,null,null,null,null,null,null,null,null,null,null,null,null,null,null,null,null,null,null,null,null,null,null,null,"","","",null,null,null,null,""]
[null,null,null,null,null,null,null,null,null,null,null,null,null,null,null,null,null,null,null,null,null,null,null,null,"","","",null,null,null,null,""]
[null,null,null,null,null,null,null,null,null,null,null,null,null,null,null,null,null,null,null,null,null,null,null,null,"","","",null,null,null,null,""]
[null,null,null,null,null,null,null,null,null,null,null,null,null,null,null,null,null,null,null,null,null,null,null,null,"","","",null,null,null,null,""]
[null,null,null,null,null,null,null,null,null,null,null,null,null,null,null,null,null,null,null,null,null,null,null,null,"","","",null,null,null,null,""]
[null,null,null,null,null,null,null,null,null,null,null,null,null,null,null,null,null,null,null,null,null,null,null,null,"","","",null,null,null,null,""]
[null,null,null,null,null,null,null,null,null,null,null,null,null,null,null,null,null,null,null,null,null,null,null,null,"","","",null,null,null,null,""]
[null,null,null,null,null,null,null,null,null,null,null,null,null,null,null,null,null,null,null,null,null,null,null,null,"","","",null,null,null,null,""]
[null,null,null,null,null,null,null,null,null,null,null,null,null,null,null,null,null,null,null,null,null,null,null,null,"","","",null,null,null,null,""]
[null,null,null,null,null,null,null,null,null,null,null,null,null,null,null,null,null,null,null,null,null,null,null,null,"","","",null,null,null,null,""]
[null,null,null,null,null,null,null,null,null,null,null,null,null,null,null,null,null,null,null,null,null,null,null,null,"","","",null,null,null,null,""]
[null,null,null,null,null,null,null,null,null,null,null,null,null,null,null,null,null,null,null,null,null,null,null,null,"","","",null,null,null,null,""]
[null,null,null,null,null,null,null,null,null,null,null,null,null,null,null,null,null,null,null,null,null,null,null,null,"","","",null,null,null,null,""]
[null,null,null,null,null,null,null,null,null,null,null,null,null,null,null,null,null,null,null,null,null,null,null,null,"","","",null,null,null,null,""]
[null,null,null,null,null,null,null,null,null,null,null,null,null,null,null,null,null,null,null,null,null,null,null,null,"","","",null,null,null,null,""]
[null,null,null,null,null,null,null,null,null,null,null,null,null,null,null,null,null,null,null,null,null,null,null,null,"","","",null,null,null,null,""]
[null,null,null,null,null,null,null,null,null,null,null,null,null,null,null,null,null,null,null,null,null,null,null,null,"","","",null,null,null,null,""]
[null,null,null,null,null,null,null,null,null,null,null,null,null,null,null,null,null,null,null,null,null,null,null,null,"","","",null,null,null,null,""]
[null,null,null,null,null,null,null,null,null,null,null,null,null,null,null,null,null,null,null,null,null,null,null,null,"","","",null,null,null,null,""]
[null,null,null,null,null,null,null,null,null,null,null,null,null,null,null,null,null,null,null,null,null,null,null,null,"","","",null,null,null,null,""]
[null,null,null,null,null,null,null,null,null,null,null,null,null,null,null,null,null,null,null,null,null,null,null,null,"","","",null,null,null,null,""]
[null,null,null,null,null,null,null,null,null,null,null,null,null,null,null,null,null,null,null,null,null,null,null,null,"","","",null,null,null,null,""]
[null,null,null,null,null,null,null,null,null,null,null,null,null,null,null,null,null,null,null,null,null,null,null,null,"","","",null,null,null,null,""]
[null,null,null,null,null,null,null,null,null,null,null,null,null,null,null,null,null,null,null,null,null,null,null,null,"","","",null,null,null,null,""]
[null,null,null,null,null,null,null,null,null,null,null,null,null,null,null,null,null,null,null,null,null,null,null,null,{"$f":"IF(M250=\"\",\"\",IF($M250=0,\"not done\",IF($M250=1,\"not done\",IF($M250=2,\"not done\",))))","v":""},{"$f":"IF(M250=\"\",\"\",IF($M250=0,\"not needed\",IF($M250=1,\"not done\",IF($M250=2,\"not done\",))))","v":""},"",null,null,null,null,{"$f":"IF(W250=\"\",\"\",IF($M250=0,\"not needed\",IF($M250=1,\"not needed\",IF($M250=2,\"not done\",))))","v":""}]
[null,null,null,null,null,null,null,null,null,null,null,null,null,null,null,null,null,null,null,null,null,null,null,null,"","","",null,null,null,null,""]
[null,null,null,null,null,null,null,null,null,null,null,null,null,null,null,null,null,null,null,null,null,null,null,null,"","","",null,null,null,null,""]
[null,null,null,null,null,null,null,null,null,null,null,null,null,null,null,null,null,null,null,null,null,null,null,null,"","","",null,null,null,null,""]
[null,null,null,null,null,null,null,null,null,null,null,null,null,null,null,null,null,null,null,null,null,null,null,null,"","","",null,null,null,null,""]
[null,null,null,null,null,null,null,null,null,null,null,null,null,null,null,null,null,null,null,null,null,null,null,null,"","","",null,null,null,null,""]
[null,null,null,null,null,null,null,null,null,null,null,null,null,null,null,null,null,null,null,null,null,null,null,null,"","","",null,null,null,null,""]
[null,null,null,null,null,null,null,null,null,null,null,null,null,null,null,null,null,null,null,null,null,null,null,null,"","",{"$f":"IF(M257=\"\",\"\",IF($M257=0,\"not needed\",IF($M257=1,\"not needed\",IF($M257=2,\"not done\",))))","v":""},null,null,null,null,""]
[null,null,null,null,null,null,null,null,null,null,null,null,null,null,null,null,null,null,null,null,null,null,null,null,"","","",null,null,null,null,""]
[null,null,null,null,null,null,null,null,null,null,null,null,null,null,null,null,null,null,null,null,null,null,null,null,"","","",null,null,null,null,""]
[null,null,null,null,null,null,null,null,null,null,null,null,null,null,null,null,null,null,null,null,null,null,null,null,"","","",null,null,null,null,""]
[null,null,null,null,null,null,null,null,null,null,null,null,null,null,null,null,null,null,null,null,null,null,null,null,"","","",null,null,null,null,""]
[null,null,null,null,null,null,null,null,null,null,null,null,null,null,null,null,null,null,null,null,null,null,null,null,"","","",null,null,null,null,""]
[null,null,null,null,null,null,null,null,null,null,null,null,null,null,null,null,null,null,null,null,null,null,null,null,"","","",null,null,null,null,""]
[null,null,null,null,null,null,null,null,null,null,null,null,null,null,null,null,null,null,null,null,null,null,null,null,"","","",null,null,null,null,""]
[null,null,null,null,null,null,null,null,null,null,null,null,null,null,null,null,null,null,null,null,null,null,null,null,"","","",null,null,null,null,""]
[null,null,null,null,null,null,null,null,null,null,null,null,null,null,null,null,null,null,null,null,null,null,null,null,"","","",null,null,null,null,""]
[null,null,null,null,null,null,null,null,null,null,null,null,null,null,null,null,null,null,null,null,null,null,null,null,"","","",null,null,null,null,""]
[null,null,null,null,null,null,null,null,null,null,null,null,null,null,null,null,null,null,null,null,null,null,null,null,"","","",null,null,null,null,""]
[null,null,null,null,null,null,null,null,null,null,null,null,null,null,null,null,null,null,null,null,null,null,null,null,"","","",null,null,null,null,""]
[]
[]
[null,"IC","Opto/Photo coupler","HCNR200-300E","1102",null,"NA","NA","CC","SO-8","HEWLETT-PACKARD",5,1,"CC-LPC","Ordered","Yes",2,null,{"$f":"Q272*1500+R272*2000","v":3000},50,31,"EN-STI","EN-STI",null,{"$f":"IF(M272=\"\",\"\",IF($M272=0,\"not done\",IF($M272=1,\"not done\",IF($M272=2,\"not done\",))))","v":"not done"},"DONE",{"$f":"IF(M272=\"\",\"\",IF($M272=0,\"not needed\",IF($M272=1,\"not needed\",IF($M272=2,\"not done\",))))","v":"not needed"},"Fully Tested",null,null,"TE-EPC-LPC"]
[null,"Transistor","Mosfet-N","IRFB4310",null,null,"130A","100V","CC","TO-220AB","INTERNATIONAL RECTIFIER",3,0,"CC","To be ordered","NO",1,null,1500,"-","-","EN-STI","EN-STI",null,"not needed","done","not needed","Fully Tested",null,"Switch-Tester","TE-EPC-LPC"]
[null,"IC","Operational Amplifier","THS4521",null,null,"NA","2V5-5V5","CC","SOIC-8, MSOP-8","TEXAS INSTRUMENTS",4,1,"CC","not ordered","no",null,null,0,"-","-","BE-BI","BE-BI",null,"not done","done",{"$f":"IF(M274=\"\",\"\",IF($M274=0,\"not needed\",IF($M274=1,\"not needed\",IF($M274=2,\"not done\",))))","v":"not needed"},"Fully Tested",null,"COP-Tester","TE-EPC-LPC"]
[null,"IC","Voltage Regulator","LP2980AIM5-3.3",null,null,"50mA","3V3","CC","SOT-23","TEXAS INSTRUMENTS",5,1,"CC","not ordered","Yes",1,null,1500,"-",47,"EN-STI","EN-STI",null,{"$f":"IF(M275=\"\",\"\",IF($M275=0,\"not done\",IF($M275=1,\"not done\",IF($M275=2,\"not done\",))))","v":"not done"},"done","not needed","To Be Tested",null,"Switch-Tester","TE-EPC-LPC"]
[null,"IC","FPGA","ProASIC3-A3PE1500-PQFP208",null,null,"NA","3V3","CC","PQFP208","MICROSEMI",5,2,"CC","Not Ordered","Yes",1,1,3500,"-","all","BE-CO",null,null,"not done","done","not done","To Be Tested",null,"BE-CO","BE-CO"]
[null,"IC","ADC","ADS7258Y",null,null,"NA","5V","CC","TQFP","TI",0,1,"CC","Ordered","NO","-","-","-","-","-","TE-EPC","TE-EPC",null,"not needed","done",{"$f":"IF(M277=\"\",\"\",IF($M277=0,\"not needed\",IF($M277=1,\"not needed\",IF($M277=2,\"not done\",))))","v":"not needed"},"To Be Tested",null,"??","TE-EPC-CC"]
[null,"IC","Operational Amplifier","OP2177AR",null,null,null,null,null,null,"ANALOG DEVICES",3,1,"CC","Not Ordered","NO",null,null,null,null,null,null,null,"FGC2","not needed","done",{"$f":"IF(M278=\"\",\"\",IF($M278=0,\"not needed\",IF($M278=1,\"not needed\",IF($M278=2,\"not done\",))))","v":"not needed"},"To Be Tested",null,"COP-Tester","TE-EPC-LPC"]
[null,"Transistor","Bipolar NPN","FMMT491",null,null,"1A","60V","CC","SOT-23","ZETEX SEMICONDUCTORS FMMT491",2,0,"CC","Not Ordered","NO",null,null,null,null,null,null,null,"FGC2","not needed","done","not needed","To Be Tested",null,"Switch-Tester","TE-EPC-LPC"]

{"sheet":"CC-Coments","index":4,"n_rows":19,"n_cols":2,"rows_kept":19,"cut":false,"hidden":false,"merged":[]}
["Comments:"]
["marked tests done at H4IRRAD 2011/2012"]
["marked tests done by EN-STI at the PSI (published reports from EDMS)"]
["UCL protons 2003"]
["CNRAD 2009 SD-360 tested at the up to 125Gy, 1e12 HEH/cm2"]
["CNRAD 2009 common core not put as 80Gy"]
["CNRAD 2009 SD-350 not put as 40Gy"]
["CNRAD 2009 SAR400 TID 180Gy, SEE 1.3e12 HEH/cm2"]
["TCC-2 report!?!? (WorldFIP+EDAC tests no report and follow-up)"]
["FCG2 tests at H4, RadWG presentation no put as only 30Gy"]
["Literature on oscillator - radaition failures, TID 200Gy, test - power up, irradiate and measure in the lab? Check with Markus the activation"]
[]
["PZT2907A","potential replacement for BCP53"]
["SN74ACT245D","potential replacement for SN74LVC2T45"]
["OP2177AR","potential replacement for OPA2227U"]
[]
["1) count EPC-CC type tests"]
["2) count EPC-CC batch tests"]
["3) compare with FGC2 component list"]

{"sheet":"Sheet1","index":5,"n_rows":0,"n_cols":0,"rows_kept":0,"cut":false,"hidden":false,"merged":[]}